fUST/lending_fUST_20250507
["ID","MTS","AMOUNT","RATE_DAILY","PERIOD"]
[360140842,1746567032663,-1200.94118612,0.0001716,2]
[360140843,1746567032674,-245.03922451,0.0001726,2]
[360140844,1746567032685,-500.0,0.0001726,2]
[360140845,1746567032695,-500.0,0.0001726,2]
[360140846,1746567032705,-500.0,0.0001726,2]
[360140847,1746567032715,-500.0,0.0001726,2]
[360140848,1746567032725,-500.0,0.0001726,2]
[360140849,1746567032735,-500.0,0.0001726,2]
[360140850,1746567032745,-500.0,0.0001726,2]
[360140851,1746567032755,-500.0,0.0001726,2]
[360140852,1746567032766,-500.0,0.0001726,2]
[360140853,1746567032775,-605.31907892,0.0001726,2]
[360140855,1746567032785,-500.0,0.0001726,2]
[360140857,1746567032795,-500.0,0.0001726,2]
[360140858,1746567032804,-500.0,0.0001726,2]
[360140859,1746567032814,-500.0,0.0001726,2]
[360140860,1746567032824,-500.0,0.0001726,2]
[360140861,1746567032833,-500.0,0.0001726,2]
[360140862,1746567032843,-500.0,0.0001726,2]
[360140863,1746567032852,-500.0,0.0001726,2]
[360140864,1746567032862,-500.0,0.0001726,2]
[360140865,1746567032872,-500.0,0.0001726,2]
[360140866,1746567032882,-500.0,0.0001726,2]
[360140867,1746567032892,-500.0,0.0001726,2]
[360140868,1746567032905,-500.0,0.0001726,2]
[360140869,1746567032914,-500.0,0.0001726,2]
[360140870,1746567032925,-500.0,0.0001726,2]
[360140871,1746567032934,-500.0,0.0001726,2]
[360140872,1746567032944,-500.0,0.0001726,2]
[360140873,1746567032953,-585.13652032,0.0001726,2]
[360140874,1746567032963,-500.0,0.0001736,2]
[360140875,1746567032973,-228.07556573,0.0001736,2]
[360140876,1746567032983,-50000.0,0.00017361,2]
[360140877,1746567032992,-24900.0,0.00017363,2]
[360140878,1746567033002,-500.0,0.000174,2]
[360140879,1746567033011,-500.0,0.000174,2]
[360140880,1746567033020,-1605.48028086,0.0001755,2]
[360140881,1746567033030,-4118.0154739,0.00017753,2]
[360140882,1746567033040,-652.02381871,0.00018422,2]
[360140883,1746567033050,-1001.34834216,0.00018648,2]
[360140884,1746567033060,-500.0,0.00018673,2]
[360140885,1746567033070,-500.0,0.00018673,2]
[360140886,1746567033080,-460.94208668,0.00018673,2]
[360140887,1746567033090,-500.0,0.00018673,2]
[360140888,1746567033099,-500.0,0.00018673,2]
[360140889,1746567033109,-500.0,0.00018673,2]
[360140890,1746567033119,-360.72500622,0.00018673,2]
[360140891,1746567033129,-601.80642822,0.00018673,2]
[360140892,1746567033138,-831.07,0.0001869,3]
[360140893,1746567033148,-415.54,0.0001869,3]
[360140894,1746567033158,-207.77,0.0001869,3]
[360140895,1746567033168,-623.32,0.0001869,3]
[360140896,1746567033177,-1000.0,0.000187,2]
[360140897,1746567033187,-188696.11783459,0.000187,2]
[360140957,1746567043777,-484.79,0.0001869,3]
[360140958,1746567043787,-4515.21,0.000187,2]
[360140961,1746567046714,-1223.0,0.000187,2]
[360140962,1746567046825,-7222.61396785,0.000187,2]
[360141033,1746568237725,-300.0,0.00017158,2]
[360141035,1746568237735,-500.0,0.00017159,2]
[360141036,1746568237744,-500.0,0.00017159,2]
[360141038,1746568237754,-500.0,0.00017159,2]
[360141039,1746568237763,-500.0,0.00017159,2]
[360141040,1746568237773,-413.77764445,0.00017159,2]
[360141041,1746568237782,-925.22780491,0.0001716,2]
[360141042,1746568237791,-509.65289601,0.00017163,2]
[360141043,1746568237800,-1560.91275945,0.00017164,2]
[360141044,1746568237836,-2377.01393198,0.00017164,2]
[360141045,1746568237847,-1235.39176935,0.00017164,2]
[360141558,1746568244870,-3574.65552472,0.00017164,2]
[360141560,1746568244880,-189.11846054,0.000172,2]
[360141562,1746568244889,-16132.96472386,0.00018377,2]
[360142389,1746569432131,-340.27477,0.00017308,2]
[360142814,1746569443282,-649.32101128,0.00017308,2]
[360142816,1746569443291,-500.0,0.00017404,2]
[360142818,1746569443301,-500.0,0.00017404,2]
[360142820,1746569443310,-500.0,0.00017404,2]
[360142822,1746569443320,-500.0,0.00017404,2]
[360142824,1746569443329,-500.0,0.00017404,2]
[360142826,1746569443337,-601.66816952,0.00017404,2]
[360142827,1746569443346,-500.0,0.00017404,2]
[360142829,1746569443354,-500.0,0.00017404,2]
[360142831,1746569443365,-500.0,0.00017404,2]
[360142833,1746569443374,-500.0,0.00017404,2]
[360142835,1746569443383,-500.0,0.00017404,2]
[360142836,1746569443391,-500.0,0.00017404,2]
[360142837,1746569443401,-500.0,0.00017404,2]
[360142838,1746569443410,-500.0,0.00017404,2]
[360142839,1746569443419,-500.0,0.00017404,2]
[360142840,1746569443429,-500.0,0.00017404,2]
[360142841,1746569443438,-500.0,0.00017404,2]
[360142842,1746569443447,-500.0,0.00017404,2]
[360142843,1746569443457,-500.0,0.00017404,2]
[360142844,1746569443466,-500.0,0.00017404,2]
[360142845,1746569443475,-500.0,0.00017404,2]
[360142846,1746569443485,-500.0,0.00017404,2]
[360142847,1746569443495,-208.76390085,0.00017404,2]
[360142848,1746569443505,-500.0,0.00017404,2]
[360142849,1746569443515,-500.0,0.00017404,2]
[360142850,1746569443525,-500.0,0.00017404,2]
[360142851,1746569443534,-500.0,0.00017404,2]
[360142852,1746569443544,-500.0,0.00017404,2]
[360142853,1746569443553,-500.0,0.00017404,2]
[360142854,1746569443563,-500.0,0.00017404,2]
[360142855,1746569443573,-474.11657521,0.00017404,2]
[360142856,1746569443582,-300.0,0.00017405,2]
[360142857,1746569443592,-905.0,0.00017405,2]
[360142858,1746569443601,-504.00829593,0.00017405,2]
[360142859,1746569443610,-37184.928747,0.00017406,2]
[360142924,1746569445963,-12815.071253,0.00017406,2]
[360142926,1746569445973,-149.88053917,0.00017407,2]
[360142929,1746569445984,-3990.79463891,0.00017407,2]
[360142931,1746569445993,-7904.78727748,0.00017408,2]
[360143670,1746570637665,-250.0,0.00015267,2]
[360143671,1746570637676,-250.0,0.00015421,2]
[360143672,1746570637685,-300.0,0.00016021,2]
[360143673,1746570637695,-555.81793497,0.00016021,2]
[360143674,1746570637706,-349.18206503,0.00016021,2]
[360143675,1746570637716,-0.70820451,0.00016021,2]
[360143676,1746570637788,-259.14486641,0.0001602,2]
[360143739,1746570640679,-240.85513359,0.0001602,2]
[360143741,1746570640689,-500.0,0.0001602,2]
[360143743,1746570640699,-500.0,0.0001602,2]
[360143745,1746570640710,-500.0,0.0001602,2]
[360143747,1746570640719,-500.0,0.0001602,2]
[360143750,1746570640729,-500.0,0.0001602,2]
[360143752,1746570640739,-500.0,0.0001602,2]
[360143754,1746570640749,-500.0,0.0001602,2]
[360143756,1746570640759,-83.16370241,0.0001602,2]
[360144022,1746570643262,-518.50446711,0.0001602,2]
[360144024,1746570643273,-500.0,0.0001602,2]
[360144026,1746570643282,-306.55335014,0.0001602,2]
[360144045,1746570643457,-193.44664986,0.0001602,2]
[360144047,1746570643467,-500.0,0.0001602,2]
[360144049,1746570643477,-474.99258364,0.0001602,2]
[360144051,1746570643487,-500.0,0.0001602,2]
[360144053,1746570643496,-500.0,0.0001602,2]
[360144055,1746570643506,-500.0,0.0001602,2]
[360144056,1746570643515,-500.0,0.0001602,2]
[360144057,1746570643525,-500.0,0.0001602,2]
[360144058,1746570643534,-500.0,0.0001602,2]
[360144059,1746570643543,-500.0,0.0001602,2]
[360144061,1746570643553,-500.0,0.0001602,2]
[360144064,1746570643562,-500.0,0.0001602,2]
[360144067,1746570643572,-503.30009142,0.00016021,2]
[360144069,1746570643582,-15891.5359522,0.00016023,2]
[360144071,1746570643591,-947.06143503,0.00016304,2]
[360144073,1746570643603,-1667.6383813,0.00016311,2]
[360144075,1746570643613,-194.4696666,0.00016404,2]
[360144077,1746570643623,-50000.0,0.00016404,2]
[360144079,1746570643632,-500.0,0.00016438,2]
[360144080,1746570643642,-500.0,0.00016438,2]
[360144081,1746570643651,-500.0,0.00016438,2]
[360144082,1746570643661,-500.0,0.00016438,2]
[360144083,1746570643670,-500.0,0.00016438,2]
[360144084,1746570643679,-500.0,0.00016438,2]
[360144085,1746570643689,-500.0,0.00016438,2]
[360144086,1746570643698,-500.0,0.00016438,2]
[360144087,1746570643707,-500.0,0.00016438,2]
[360144089,1746570643716,-500.0,0.00016438,2]
[360144090,1746570643726,-500.0,0.00016438,2]
[360144091,1746570643735,-500.0,0.00016438,2]
[360144092,1746570643744,-500.0,0.00016438,2]
[360144093,1746570643753,-500.0,0.00016438,2]
[360144094,1746570643763,-500.0,0.00016438,2]
[360144095,1746570643772,-500.0,0.00016438,2]
[360144096,1746570643782,-500.0,0.00016438,2]
[360144097,1746570643791,-500.0,0.00016438,2]
[360144098,1746570643801,-500.0,0.00016438,2]
[360144099,1746570643811,-500.0,0.00016438,2]
[360144100,1746570643820,-500.0,0.00016438,2]
[360144101,1746570643829,-500.0,0.00016438,2]
[360144102,1746570643838,-500.0,0.00016438,2]
[360144103,1746570643848,-500.0,0.00016438,2]
[360144104,1746570643860,-500.0,0.00016438,2]
[360144105,1746570643869,-500.0,0.00016438,2]
[360144106,1746570643878,-500.0,0.00016438,2]
[360144107,1746570643887,-500.0,0.00016438,2]
[360144108,1746570643896,-500.0,0.00016438,2]
[360144109,1746570643906,-500.0,0.00016438,2]
[360144110,1746570643916,-500.0,0.00016438,2]
[360144111,1746570643925,-500.0,0.000165,2]
[360144112,1746570643934,-500.0,0.000165,2]
[360144113,1746570643943,-425.60220786,0.000165,2]
[360144114,1746570643953,-500.0,0.000165,2]
[360144115,1746570643962,-500.0,0.000165,2]
[360144116,1746570643971,-500.0,0.000165,2]
[360144117,1746570643981,-473.87961592,0.00017018,2]
[360144119,1746570643990,-200.17512853,0.00017208,2]
[360144121,1746570644000,-353.0308048,0.00017293,2]
[360144123,1746570644009,-784.480004,0.00017308,2]
[360144125,1746570644017,-998.50224663,0.00017407,2]
[360144127,1746570644026,-1007.83388835,0.00017407,2]
[360144129,1746570644035,-320.0,0.00017408,2]
[360144130,1746570644044,-320.0,0.00017408,2]
[360144133,1746570644053,-360.0,0.00017408,2]
[360144135,1746570644062,-360.0,0.00017408,2]
[360144136,1746570644071,-420.0,0.00017516,2]
[360144138,1746570644080,-947.06143502,0.00017522,2]
[360144141,1746570644090,-5000.0,0.00017748,2]
[360144142,1746570644101,-1267.91483172,0.000179,2]
[360144143,1746570644111,-155.0,0.00017954,2]
[360144144,1746570644120,-204.19797102,0.00017954,2]
[360144145,1746570644129,-78598.44909,0.00018189,2]
[360144146,1746570644138,-500.0,0.0001819,2]
[360144147,1746570644147,-191.7,0.0001819,2]
[360144148,1746570644156,-191.7,0.0001819,2]
[360144158,1746570644291,-2660.7,0.0001819,2]
[360144160,1746570644301,-2660.7,0.0001819,2]
[360144162,1746570644311,-2660.7,0.0001819,2]
[360144164,1746570644320,-2660.7,0.0001819,2]
[360144166,1746570644330,-2660.7,0.0001819,2]
[360144168,1746570644339,-2660.7,0.0001819,2]
[360144170,1746570644349,-2660.7,0.0001819,2]
[360144172,1746570644362,-158.255058,0.0001819,2]
[360144174,1746570644371,-903.01089074,0.000183,2]
[360144176,1746570644381,-512.91517903,0.00018341,2]
[360144178,1746570644390,-160.0,0.00018342,2]
[360144180,1746570644400,-1000.0,0.00018366,5]
[360144182,1746570644410,-903.01089072,0.0001837,2]
[360144184,1746570644419,-500.0,0.00018373,2]
[360144186,1746570644429,-500.0,0.00018373,2]
[360144188,1746570644438,-500.0,0.00018373,2]
[360144191,1746570644449,-500.0,0.00018373,2]
[360144193,1746570644459,-500.0,0.00018373,2]
[360144195,1746570644468,-539.05791332,0.00018373,2]
[360144196,1746570644478,-500.0,0.00018373,2]
[360144197,1746570644488,-500.0,0.00018373,2]
[360144198,1746570644497,-500.0,0.00018373,2]
[360144199,1746570644507,-500.0,0.00018373,2]
[360144200,1746570644516,-151.0,0.00018373,2]
[360144201,1746570644526,-153.394978,0.00018373,2]
[360144202,1746570644535,-151.0,0.00018373,2]
[360144203,1746570644545,-1267.91483153,0.00018383,2]
[360144204,1746570644555,-972.04,0.0001839,3]
[360144205,1746570644564,-741.82,0.0001839,3]
[360144206,1746570644574,-370.91,0.0001839,3]
[360144207,1746570644585,-185.45,0.0001839,3]
[360144208,1746570644594,-556.39,0.0001839,3]
[360144209,1746570644606,-370000.0,0.000184,2]
[360144210,1746570644616,-151.0,0.000184,2]
[360144211,1746570644626,-151.0,0.000184,2]
[360144212,1746570644635,-151.0,0.000184,2]
[360144213,1746570644645,-151.0,0.000184,2]
[360144214,1746570644655,-151.0,0.000184,2]
[360144215,1746570644664,-294.469687,0.000184,2]
[360144216,1746570644673,-151.0,0.000184,2]
[360144217,1746570644683,-1944.924982,0.000184,2]
[360144218,1746570644693,-1944.924982,0.000184,2]
[360144219,1746570644703,-151.0,0.000184,2]
[360144220,1746570644712,-823.004163,0.000184,2]
[360144221,1746570644722,-151.0,0.000184,2]
[360144222,1746570644731,-823.004163,0.000184,2]
[360144223,1746570644741,-200.0,0.00018425,4]
[360144224,1746570644751,-903.01089072,0.0001844,2]
[360144225,1746570644760,-500.0,0.00018473,2]
[360144226,1746570644770,-500.0,0.00018493,2]
[360144227,1746570644779,-500.0,0.00018499,2]
[360144228,1746570644789,-500.0,0.00018499,2]
[360144229,1746570644799,-500.0,0.00018499,2]
[360144230,1746570644808,-500.0,0.00018499,2]
[360144231,1746570644818,-500.0,0.00018499,2]
[360144232,1746570644828,-500.0,0.00018499,2]
[360144233,1746570644838,-500.0,0.00018499,2]
[360144234,1746570644848,-500.0,0.00018499,2]
[360144235,1746570644859,-500.0,0.00018499,2]
[360144236,1746570644869,-500.0,0.00018499,2]
[360144237,1746570644878,-500.0,0.00018499,2]
[360144238,1746570644888,-500.0,0.00018499,2]
[360144239,1746570644897,-500.0,0.00018499,2]
[360144240,1746570644907,-500.0,0.00018499,2]
[360144241,1746570644917,-500.0,0.00018499,2]
[360144242,1746570644926,-500.0,0.00018499,2]
[360144244,1746570644936,-530.76029918,0.00018499,2]
[360144246,1746570644945,-151.0,0.000185,2]
[360144248,1746570644955,-151.0,0.000185,2]
[360144250,1746570644965,-250.0,0.000185,2]
[360144252,1746570644975,-151.0,0.000185,2]
[360144254,1746570644984,-151.0,0.000185,2]
[360144256,1746570644994,-173.346096,0.000185,2]
[360144258,1746570645004,-173.346096,0.000185,2]
[360144260,1746570645014,-151.0,0.000185,2]
[360144262,1746570645023,-151.0,0.000185,2]
[360144264,1746570645033,-903.01089072,0.00018509,2]
[360144266,1746570645042,-1223.0,0.0001857,6]
[360144268,1746570645053,-903.01089072,0.00018579,2]
[360144270,1746570645062,-151.0,0.00018581,2]
[360144272,1746570645072,-151.0,0.00018581,2]
[360144274,1746570645082,-151.0,0.00018581,2]
[360144276,1746570645091,-152.884301,0.00018581,2]
[360144278,1746570645102,-151.0,0.00018581,2]
[360144280,1746570645112,-155.760353,0.00018581,2]
[360144282,1746570645122,-151.0,0.00018581,2]
[360144284,1746570645132,-151.0,0.00018581,2]
[360144286,1746570645141,-151.0,0.00018581,2]
[360144288,1746570645150,-1944.924982,0.00018581,2]
[360144290,1746570645160,-1944.924982,0.00018581,2]
[360144292,1746570645169,-151.0,0.00018581,2]
[360144294,1746570645179,-823.004163,0.00018581,2]
[360144296,1746570645190,-823.004163,0.00018581,2]
[360144298,1746570645202,-5000.0,0.00018581,2]
[360144300,1746570645212,-151.0,0.00018599,2]
[360144302,1746570645222,-151.0,0.000186,2]
[360144304,1746570645231,-151.0,0.000186,2]
[360144306,1746570645240,-151.0,0.000186,2]
[360144308,1746570645250,-151.0,0.000186,2]
[360144310,1746570645260,-141127.80735322,0.00018679,2]
[360144492,1746571832245,-300.0,0.0001601,2]
[360144494,1746571832256,-1001.0,0.0001601,2]
[360144496,1746571832265,-233.5186855,0.00016011,2]
[360144498,1746571832275,-44.61683876,0.00016011,2]
[360144505,1746571832439,-455.38316124,0.00016011,2]
[360144506,1746571832450,-500.0,0.00016011,2]
[360144507,1746571832460,-500.0,0.00016011,2]
[360144508,1746571832470,-500.0,0.00016011,2]
[360144509,1746571832479,-302.74698468,0.00016011,2]
[360144510,1746571832489,-500.0,0.00016011,2]
[360144511,1746571832499,-500.0,0.00016011,2]
[360144512,1746571832509,-500.0,0.00016011,2]
[360144513,1746571832518,-500.0,0.00016011,2]
[360144514,1746571832527,-500.0,0.00016011,2]
[360144515,1746571832537,-500.0,0.00016011,2]
[360144516,1746571832546,-500.0,0.00016011,2]
[360144517,1746571832556,-500.0,0.00016011,2]
[360144518,1746571832566,-500.0,0.00016011,2]
[360144519,1746571832575,-500.0,0.00016011,2]
[360144520,1746571832585,-500.0,0.00016011,2]
[360144521,1746571832595,-500.0,0.00016011,2]
[360144522,1746571832605,-500.0,0.00016011,2]
[360144523,1746571832615,-500.0,0.00016011,2]
[360144524,1746571832627,-500.0,0.00016011,2]
[360144525,1746571832638,-500.0,0.00016011,2]
[360144526,1746571832648,-500.0,0.00016011,2]
[360144527,1746571832658,-585.13652031,0.00016011,2]
[360144528,1746571832668,-2451.51655376,0.00016011,2]
[360144529,1746571832678,-413.7651789,0.00016011,2]
[360144530,1746571832688,-160.0,0.00016014,2]
[360144531,1746571832698,-500.0,0.00016438,2]
[360144532,1746571832707,-500.0,0.00016438,2]
[360144533,1746571832718,-500.0,0.00016438,2]
[360144534,1746571832729,-500.0,0.00016438,2]
[360144535,1746571832739,-500.0,0.00016438,2]
[360144536,1746571832748,-500.0,0.00016438,2]
[360144537,1746571832758,-224.11657521,0.00016438,2]
[360144538,1746571832771,-500.0,0.00016438,2]
[360144539,1746571832781,-500.0,0.00016438,2]
[360144540,1746571832792,-500.0,0.00016438,2]
[360144541,1746571832802,-500.0,0.00016438,2]
[360144542,1746571832813,-500.0,0.00016438,2]
[360144543,1746571832825,-500.0,0.00016438,2]
[360144544,1746571832834,-500.0,0.00016438,2]
[360144545,1746571832844,-500.0,0.00016438,2]
[360144546,1746571832854,-420.0,0.00017504,2]
[360144547,1746571832863,-467.39575895,0.00018295,2]
[360144548,1746571832874,-151.0,0.00018373,2]
[360144549,1746571832884,-151.0,0.00018373,2]
[360144550,1746571832894,-176.3514,0.00018373,2]
[360144551,1746571832904,-176.3514,0.00018373,2]
[360144552,1746571832914,-151.0,0.000184,2]
[360144553,1746571833138,-193.061442,0.000184,2]
[360144554,1746571833148,-176.3514,0.000184,2]
[360144555,1746571833159,-176.3514,0.000184,2]
[360144556,1746571833171,-151.0,0.000184,2]
[360144557,1746571833181,-117.25344934,0.000184,2]
[360144622,1746571840772,-33.74655066,0.000184,2]
[360144624,1746571840782,-151.0,0.000184,2]
[360144626,1746571840792,-224.840608,0.000184,2]
[360144628,1746571840801,-224.840608,0.000184,2]
[360144630,1746571840811,-473.87961593,0.00018411,2]
[360144632,1746571840820,-710.2960763,0.00018469,2]
[360144634,1746571840832,-266.00783147,0.00018481,2]
[360144636,1746571840842,-2817.40072442,0.000185,2]
[360144638,1746571840852,-168.49427722,0.00018568,2]
[360144640,1746571840861,-756.74,0.00018569,3]
[360144642,1746571840871,-378.37,0.00018569,3]
[360144644,1746571840880,-189.18,0.00018569,3]
[360144646,1746571840889,-567.57,0.00018569,3]
[360144648,1746571840898,-230.35870959,0.00018573,2]
[360144956,1746571844014,-269.64129041,0.00018573,2]
[360144958,1746571844024,-500.0,0.00018573,2]
[360144960,1746571844033,-261.55051825,0.00018573,2]
[360144961,1746571844042,-500.0,0.00018573,2]
[360144963,1746571844052,-500.0,0.00018573,2]
[360144965,1746571844062,-500.0,0.00018573,2]
[360144966,1746571844072,-500.0,0.00018573,2]
[360144968,1746571844083,-500.0,0.00018573,2]
[360144970,1746571844092,-500.0,0.00018573,2]
[360144971,1746571844102,-500.0,0.00018573,2]
[360144973,1746571844111,-500.0,0.00018573,2]
[360144975,1746571844120,-500.0,0.00018573,2]
[360144976,1746571844131,-9531.66549896,0.00018579,2]
[360144978,1746571844146,-1144.27303033,0.00018579,2]
[360145182,1746571846428,-5949.02514718,0.00018579,2]
[360145665,1746573032643,-1535.41964536,0.00015756,2]
[360145683,1746573039215,-3419.39690808,0.00015756,2]
[360145684,1746573039225,-277.9886091,0.00015915,2]
[360145686,1746573039235,-300.0,0.00016014,2]
[360145688,1746573039244,-500.0,0.00016015,2]
[360145689,1746573039254,-500.0,0.00016015,2]
[360145691,1746573039264,-500.0,0.00016015,2]
[360145693,1746573039273,-500.0,0.00016015,2]
[360145694,1746573039282,-500.0,0.00016015,2]
[360145696,1746573039292,-500.0,0.00016015,2]
[360145697,1746573039303,-186.76617158,0.00016015,2]
[360145698,1746573039312,-585.13652031,0.00016015,2]
[360145699,1746573039322,-529.002145,0.00016443,2]
[360145700,1746573039331,-1461.42678488,0.000169,2]
[360145701,1746573039343,-1461.42678487,0.00017452,2]
[360145702,1746573039352,-420.0,0.00017508,2]
[360145703,1746573039361,-151.0,0.00017989,2]
[360145704,1746573039371,-63460.07180882,0.00018,2]
[360145705,1746573039380,-200.0,0.00018,10]
[360145706,1746573039389,-200.0,0.00018,10]
[360145707,1746573039399,-200.0,0.00018,10]
[360145708,1746573039408,-200.0,0.00018,10]
[360145709,1746573039417,-200.0,0.00018,10]
[360145710,1746573039426,-200.0,0.00018,10]
[360145711,1746573039436,-200.0,0.00018,10]
[360145712,1746573039445,-200.0,0.00018,10]
[360145713,1746573039455,-200.0,0.00018,10]
[360145714,1746573039464,-200.0,0.00018,10]
[360145715,1746573039473,-200.0,0.00018,10]
[360145716,1746573039483,-200.0,0.00018,10]
[360145717,1746573039492,-200.0,0.00018,10]
[360145718,1746573039502,-200.0,0.00018,10]
[360145719,1746573039511,-200.0,0.00018,10]
[360145720,1746573039520,-200.0,0.00018,10]
[360145721,1746573039530,-200.0,0.00018,10]
[360145722,1746573039539,-200.0,0.00018,10]
[360145723,1746573039548,-200.0,0.00018,10]
[360145724,1746573039558,-200.0,0.00018,10]
[360145725,1746573039567,-200.0,0.00018,10]
[360145726,1746573039578,-200.0,0.00018,10]
[360145727,1746573039589,-200.0,0.00018,10]
[360145728,1746573039598,-200.0,0.00018,10]
[360145729,1746573039607,-200.0,0.00018,10]
[360145730,1746573039780,-200.0,0.00018,10]
[360145731,1746573039793,-200.0,0.00018,10]
[360145732,1746573039802,-200.0,0.00018,10]
[360145733,1746573039812,-200.0,0.00018,10]
[360145734,1746573039821,-200.0,0.00018,10]
[360145735,1746573039831,-200.0,0.00018,10]
[360145736,1746573039842,-200.0,0.00018,10]
[360145737,1746573039852,-200.0,0.00018,10]
[360145738,1746573039862,-200.0,0.00018,10]
[360145739,1746573039871,-200.0,0.00018,10]
[360145740,1746573039881,-200.0,0.00018,10]
[360145741,1746573039891,-200.0,0.00018,10]
[360145742,1746573039900,-200.0,0.00018,10]
[360145743,1746573039910,-200.0,0.00018,10]
[360145744,1746573039919,-200.0,0.00018,10]
[360145745,1746573039929,-200.0,0.00018,10]
[360145746,1746573039939,-200.0,0.00018,10]
[360145747,1746573039949,-281.530763,0.00018,10]
[360145748,1746573039959,-396.0,0.00018,2]
[360145749,1746573039969,-498.0,0.00018,2]
[360145750,1746573039978,-151.0,0.00018,2]
[360145752,1746573039988,-474.0,0.00018,2]
[360145753,1746573039998,-161.0,0.00018,2]
[360145755,1746573040008,-402.0,0.00018,2]
[360145756,1746573040018,-235.0,0.00018,2]
[360145757,1746573040028,-352.0,0.00018,2]
[360145758,1746573040037,-180.0,0.00018,2]
[360145759,1746573040046,-1461.42678487,0.00018003,2]
[360145761,1746573040057,-320.92603214,0.00018206,2]
[360145762,1746573040067,-473.87961593,0.00018234,2]
[360145763,1746573040077,-1000.0,0.00018291,2]
[360145764,1746573040088,-500.0,0.00018452,7]
[360145765,1746573040098,-500.0,0.00018452,7]
[360145766,1746573040108,-500.0,0.00018452,7]
[360145767,1746573040118,-500.0,0.00018452,7]
[360145768,1746573040127,-500.0,0.00018452,7]
[360145769,1746573040139,-500.0,0.00018452,7]
[360145770,1746573040149,-500.0,0.00018452,7]
[360145771,1746573040159,-500.0,0.00018452,7]
[360145772,1746573040168,-500.0,0.00018452,7]
[360145773,1746573040179,-500.0,0.00018452,7]
[360145774,1746573040188,-500.0,0.00018452,7]
[360145775,1746573040198,-500.0,0.00018452,7]
[360145776,1746573040207,-500.0,0.00018452,7]
[360145777,1746573040217,-500.0,0.00018452,7]
[360145779,1746573040227,-500.0,0.00018452,7]
[360145780,1746573040237,-525.49,0.00018452,7]
[360145781,1746573040247,-500.0,0.00018452,7]
[360145782,1746573040257,-500.0,0.00018452,7]
[360145783,1746573040267,-500.0,0.00018452,7]
[360145784,1746573040277,-441.43,0.00018469,3]
[360145785,1746573040287,-220.71,0.00018469,3]
[360145786,1746573040297,-662.16,0.00018469,3]
[360145787,1746573040307,-500.0,0.00018473,2]
[360145788,1746573040317,-500.0,0.00018473,2]
[360145789,1746573040326,-500.0,0.00018473,2]
[360145790,1746573040336,-500.0,0.00018473,2]
[360145791,1746573040346,-500.0,0.00018473,2]
[360145792,1746573040356,-500.0,0.00018473,2]
[360145793,1746573040365,-500.0,0.00018473,2]
[360145794,1746573040374,-500.0,0.00018473,2]
[360145795,1746573040384,-500.0,0.00018473,2]
[360145796,1746573040393,-500.0,0.00018473,2]
[360145797,1746573040403,-77776.38007245,0.00018479,2]